[Event "ESTCC 65 2019"]
[Site "Mali Losinj"]
[Date "2019.09.21"]
[Round "4.13"]
[White "Huss, Andreas"]
[Black "Lofgren, Claes"]
[Result "1/2-1/2"]
[ECO "E32"]
[WhiteElo "2261"]
[BlackElo "2059"]
[Annotator "ChessBase"]
[PlyCount "160"]
[EventDate "2019.09.18"]
[EventType "team-tourn"]
[EventCountry "CRO"]
[SourceTitle "playchess.com"]
[Source "ChessBase"]
[SourceQuality "1"]
[WhiteTeam "Switzerland"]
[BlackTeam "Denmark"]
[WhiteTeamCountry "SUI"]
[BlackTeamCountry "DEN"]
[TimeControl "40/5400+30:1800+30"]

1. d4 {[%emt 0:00:30]} Nf6 {[%emt 0:00:30]} 2. c4 {[%emt 0:00:00]} e6 {[%emt 0:00:00]} 3. Nf3 {[%emt 0:00:00]} b6 {[%emt 0:01:00]} 4. Nc3 {[%emt 0:00:30]} Bb4 {[%emt 0:00:30]} 5. Qc2 {[%emt 0:00:00]} Bb7 {[%emt 0:02:30]} 6. a3 {[%emt 0:00:00]} Bxc3+ {[%emt 0:03:30]} 7. Qxc3 {[%emt 0:00:30]} Ne4 {[%emt 0:01:30]} 8. Qc2 {[%emt 0:00:30]} f5 {[%emt 0:02:30]} 9. e3 {[%emt 0:01:30]} O-O {[%emt 0:06:30]} 10. Bd3 {[%emt 0:00:30]} d6 {[%emt 0:02:30]} 11. b4 {[%emt 0:00:30]} Nd7 {[%emt 0:01:30]} 12. Bb2 {[%emt 0:00:30]} Qe7 {[%emt 0:04:30]} 13. O-O {[%emt 0:04:30]} Rae8 {[%emt 0:04:30]} 14. Rae1 {[%emt 0:05:30]} Ndf6 {[%emt 0:06:30]} 15. Nd2 {[%emt 0:02:30]} Nxd2 {[%emt 0:08:30]} 16. Qxd2 {[%emt 0:00:30]} g6 {[%emt 0:01:30]} 17. f3 {[%emt 0:03:30]} Rf7 {[%emt 0:04:30]} 18. Qc3 {[%emt 0:04:30]} Ref8 {[%emt 0:10:30]} 19. a4 {[%emt 0:08:30]} h6 {[%emt 0:06:30]} 20. Ra1 {[%emt 0:04:30]} Kh7 {[%emt 0:01:30]} 21. a5 {[%emt 0:00:30]} Nd7 {[%emt 0:02:30]} 22. axb6 {[%emt 0:00:30]} axb6 {[%emt 0:00:30]} 23. Ra7 {[%emt 0:00:30]} Rb8 {[%emt 0:01:30]} 24. c5 {[%emt 0:08:30]} Nf6 {[%emt 0:00:30]} 25. Rc1 {[%emt 0:10:30]} Nd5 {[%emt 0:02:30]} 26. Qd2 {[%emt 0:06:30]} Qg5 {[%emt 0:03:30]} 27. c6 {[%emt 0:01:30]} Bc8 {[%emt 0:00:30]} 28. Re1 {[%emt 0:02:30]} Qd8 {[%emt 0:05:56]} 29. b5 {[%emt 0:01:30]} Nf6 {[%emt 0:01:38]} 30. e4 {[%emt 0:02:30]} fxe4 {[%emt 0:04:34]} 31. fxe4 {[%emt 0:07:30]} e5 {[%emt 0:01:55]} 32. dxe5 {[%emt 0:00:30]} dxe5 {[%emt 0:00:06]} 33. Rf1 {[%emt 0:12:21]} Be6 {[%emt 0:01:29]} 34. Bxe5 {[%emt 0:02:46]} Rc8 {[%emt 0:05:07]} 35. h3 {[%emt 0:03:49]} Nxe4 {[%emt 0:01:30]} 36. Rxf7+ {[%emt 0:00:20]} Bxf7 {[%emt 0:00:04]} 37. Qf4 {[%emt 0:00:31]} Ng5 {[%emt 0:00:11]} 38. Bc2 {[%emt 0:03:28]} Qe7 {[%emt 0:02:04]} 39. Kh2 {[%emt 0:01:41]} Ne6 {[%emt 0:00:52]} 40. Qg3 {[%emt 0:01:25]} Qb4 {[%emt 0:01:04]} 41. Bxc7 {[%emt 0:02:09]} Nxc7 {[%emt 0:03:30]} 42. Rxc7 {[%emt 0:00:30]} Rxc7 {[%emt 0:00:30]} 43. Qxc7 {[%emt 0:00:00]} Kg8 {[%emt 0:00:30]} 44. Qb8+ {[%emt 0:03:00]} Kh7 {[%emt 0:01:30]} 45. Bd3 {[%emt 0:00:00]} Qc5 {[%emt 0:02:30]} 46. Qf4 {[%emt 0:01:00]} Kg7 {[%emt 0:00:30]} 47. Qg3 {[%emt 0:04:30]} Qc3 {[%emt 0:03:30]} 48. c7 {[%emt 0:02:30]} Qc5 {[%emt 0:00:30]} 49. Be4 {[%emt 0:00:30]} Kf6 {[%emt 0:02:30]} 50. Bc6 {[%emt 0:03:32]} Be6 {[%emt 0:00:30]} 51. Qf4+ {[%emt 0:01:15]} Kg7 {[%emt 0:01:48]} 52. h4 {[%emt 0:02:09]} Bc8 {[%emt 0:01:12]} 53. Qg3 {[%emt 0:03:19]} Qd4 {[%emt 0:02:43]} 54. Bf3 {[%emt 0:02:46]} Kf6 {[%emt 0:01:48]} 55. Be2 {[%emt 0:00:33]} g5 {[%emt 0:10:25]} 56. hxg5+ {[%emt 0:04:48]} hxg5 {[%emt 0:00:05]} 57. Qf3+ {[%emt 0:01:19]} Kg7 {[%emt 0:02:35]} 58. g3 {[%emt 0:00:51]} Qe5 {[%emt 0:00:56]} 59. Qh5 {[%emt 0:00:51]} Qxc7 {[%emt 0:00:36]} 60. Qxg5+ {[%emt 0:00:10]} Kf8 {[%emt 0:00:29]} 61. Qf6+ {[%emt 0:01:08]} Kg8 {[%emt 0:00:35]} 62. Bd3 {[%emt 0:00:43]} Qc5 {[%emt 0:00:33]} 63. Bg6 {[%emt 0:01:13]} Qc7 {[%emt 0:00:30]} 64. Be4 {[%emt 0:00:31]} Qc5 {[%emt 0:00:21]} 65. Qg6+ {[%emt 0:01:02]} Kf8 {[%emt 0:00:03]} 66. Qf6+ {[%emt 0:00:31]} Kg8 {[%emt 0:00:01]} 67. Qd8+ {[%emt 0:00:53]} Kg7 {[%emt 0:00:13]} 68. Qd5 {[%emt 0:00:41]} Qxd5 {[%emt 0:02:24]} 69. Bxd5 {[%emt 0:00:01]} Kf6 {[%emt 0:00:08]} 70. Bc6 {[%emt 0:00:22]} Bf5 {[%emt 0:00:39]} 71. Kg2 {[%emt 0:00:04]} Bd3 {[%emt 0:00:18]} 72. Kf3 {[%emt 0:00:11]} Kg5 {[%emt 0:00:18]} 73. Bd7 {[%emt 0:00:07]} Kf6 {[%emt 0:00:46]} 74. Ke3 {[%emt 0:00:45]} Bf1 {[%emt 0:00:12]} 75. Kf4 {[%emt 0:00:27]} Ke7 {[%emt 0:00:35]} 76. Bc6 {[%emt 0:00:10]} Kf6 {[%emt 0:00:12]} 77. g4 {[%emt 0:00:05]} Be2 {[%emt 0:00:25]} 78. g5+ {[%emt 0:00:19]} Kg6 {[%emt 0:00:12]} 79. Be8+ {[%emt 0:00:28]} Kg7 {[%emt 0:00:09]} 80. Ke5 {[%emt 0:00:53]} Bf1 {[%emt 0:00:14]} 1/2-1/2

[Event "ESTCC 65 2019"]
[Site "Mali Losinj"]
[Date "2019.09.21"]
[Round "4.14"]
[White "Nielsen, Jorgen Lovgren"]
[Black "Vucenovic, Dragomir"]
[Result "1/2-1/2"]
[ECO "C75"]
[WhiteElo "2052"]
[BlackElo "2154"]
[Annotator "NA"]
[PlyCount "65"]
[EventDate "2019.09.18"]
[EventType "team-tourn"]
[EventCountry "CRO"]
[SourceTitle "playchess.com"]
[Source "ChessBase"]
[SourceQuality "1"]
[WhiteTeam "Denmark"]
[BlackTeam "Switzerland"]
[WhiteTeamCountry "DEN"]
[BlackTeamCountry "SUI"]
[TimeControl "40/5400+30:1800+30"]

1. e4 {[%emt 0:00:30]} e5 {[%emt 0:00:30]} 2. Nf3 {[%emt 0:00:00]} Nc6 {[%emt 0:00:30]} 3. Bb5 {[%emt 0:00:00]} a6 {[%emt 0:00:00]} 4. Ba4 {[%emt 0:00:30]} d6 {[%emt 0:00:00]} 5. c3 {[%emt 0:01:30]} Bd7 {[%emt 0:00:30]} 6. O-O {[%emt 0:00:30]} Nge7 {[%emt 0:00:00]} 7. d4 {[%emt 0:00:30]} Ng6 {[%emt 0:00:00]} 8. Be3 {[%emt 0:02:30]} Be7 {[%emt 0:00:30]} 9. Re1 {[%emt 0:01:30]} h6 {[%emt 0:00:30]} 10. Nbd2 {[%emt 0:00:30]} Bg5 {[%emt 0:02:30]} 11. Nf1 {[%emt 0:04:30]} Bxe3 {[%emt 0:00:30]} 12. Nxe3 {[%emt 0:00:30]} O-O {[%emt 0:00:30]} 13. Nf5 {[%emt 0:03:30]} exd4 {[%emt 0:22:30]} 14. N3xd4 {[%emt 0:05:30]} Nh4 {[%emt 0:10:30]} 15. Nxc6 {[%emt 0:05:30]} bxc6 {[%emt 0:00:30]} 16. Nxh4 {[%emt 0:06:30]} Qxh4 {[%emt 0:00:30]} 17. Qf3 {[%emt 0:00:30]} Rae8 {[%emt 0:01:30]} 18. Re3 {[%emt 0:05:30]} Re7 {[%emt 0:02:30]} 19. Qg3 {[%emt 0:03:30]} Qxg3 {[%emt 0:00:30]} 20. hxg3 {[%emt 0:00:30]} Rfe8 {[%emt 0:08:30]} 21. Rae1 {[%emt 0:00:30]} g6 {[%emt 0:02:30]} 22. g4 {[%emt 0:03:30]} Kg7 {[%emt 0:02:30]} 23. f3 {[%emt 0:01:30]} f5 {[%emt 0:02:30]} 24. gxf5 {[%emt 0:00:30]} gxf5 {[%emt 0:00:30]} 25. Kf2 {[%emt 0:01:30]} f4 {[%emt 0:08:30]} 26. R3e2 {[%emt 0:01:30]} Re5 {[%emt 0:00:30]} 27. Rh1 {[%emt 0:02:30]} Rg5 {[%emt 0:07:30]} 28. Rh4 {[%emt 0:01:30]} Rf8 {[%emt 0:00:30]} 29. Re1 {[%emt 0:03:30]} Rf6 {[%emt 0:01:30]} 30. Reh1 {[%emt 0:01:30]} Be6 {[%emt 0:02:30]} 31. Bxc6 {[%emt 0:03:30]} Bxa2 {[%emt 0:00:30]} 32. Ra1 {[%emt 0:03:30]} Bc4 {[%emt 0:00:30]} 33. Ra4 {[%emt 0:01:30]} 1/2-1/2

[Event "ESTCC 65 2019"]
[Site "Mali Losinj"]
[Date "2019.09.21"]
[Round "4.15"]
[White "Hohler, Peter"]
[Black "Nielsen, Preben Lovgren"]
[Result "1-0"]
[ECO "A70"]
[WhiteElo "2047"]
[BlackElo "2007"]
[Annotator "NA"]
[PlyCount "71"]
[EventDate "2019.09.18"]
[EventType "team-tourn"]
[EventCountry "CRO"]
[SourceTitle "playchess.com"]
[Source "ChessBase"]
[SourceQuality "1"]
[WhiteTeam "Switzerland"]
[BlackTeam "Denmark"]
[WhiteTeamCountry "SUI"]
[BlackTeamCountry "DEN"]
[TimeControl "40/5400+30:1800+30"]

1. d4 {[%emt 0:00:30]} Nf6 {[%emt 0:00:30]} 2. c4 {[%emt 0:00:00]} c5 {[%emt 0:00:00]} 3. d5 {[%emt 0:01:00]} e6 {[%emt 0:00:00]} 4. Nc3 {[%emt 0:00:00]} exd5 {[%emt 0:00:30]} 5. cxd5 {[%emt 0:00:00]} d6 {[%emt 0:00:30]} 6. e4 {[%emt 0:00:30]} g6 {[%emt 0:00:00]} 7. h3 {[%emt 0:00:30]} Bg7 {[%emt 0:00:00]} 8. Nf3 {[%emt 0:00:00]} O-O {[%emt 0:00:30]} 9. Bd3 {[%emt 0:00:00]} Re8 {[%emt 0:00:30]} 10. O-O {[%emt 0:00:30]} a6 {[%emt 0:00:30]} 11. a4 {[%emt 0:00:30]} c4 {[%emt 0:06:30]} 12. Bc2 {[%emt 0:03:30]} Nbd7 {[%emt 0:03:30]} 13. Re1 {[%emt 0:04:30]} Nc5 {[%emt 0:02:30]} 14. Bf4 {[%emt 0:05:30]} Qb6 {[%emt 0:09:30]} 15. Rb1 {[%emt 0:12:30]} Nfd7 {[%emt 0:02:30]} 16. Nd2 {[%emt 0:04:30]} Nd3 {[%emt 0:07:30]} 17. Bxd3 {[%emt 0:04:30]} cxd3 {[%emt 0:01:30]} 18. Nc4 {[%emt 0:06:30]} Qd4 {[%emt 0:10:30]} 19. Nxd6 {[%emt 0:03:30]} Rf8 {[%emt 0:02:30]} 20. Be3 {[%emt 0:03:30]} Qb4 {[%emt 0:01:30]} 21. Nxc8 {[%emt 0:00:30]} Raxc8 {[%emt 0:00:30]} 22. Qxd3 {[%emt 0:00:30]} Ne5 {[%emt 0:01:30]} 23. Qd1 {[%emt 0:04:30]} Nc4 {[%emt 0:01:30]} 24. Bf4 {[%emt 0:12:30]} Nxb2 {[%emt 0:02:30]} 25. Na2 {[%emt 0:05:30]} Qc4 {[%emt 0:06:30]} 26. Qd2 {[%emt 0:03:30]} Qxa2 {[%emt 0:01:30]} 27. e5 {[%emt 0:00:30]} Qxa4 {[%emt 0:09:30]} 28. Rxb2 {[%emt 0:00:00]} Qd7 {[%emt 0:02:30]} 29. Rb3 {[%emt 0:05:00]} Rc5 {[%emt 0:01:30]} 30. Rd3 {[%emt 0:00:40]} Rfc8 {[%emt 0:03:30]} 31. Bg3 {[%emt 0:06:36]} Rc2 {[%emt 0:08:22]} 32. Qe3 {[%emt 0:00:26]} Bf8 {[%emt 0:00:56]} 33. e6 {[%emt 0:03:49]} fxe6 {[%emt 0:01:49]} 34. dxe6 {[%emt 0:00:18]} Qe8 {[%emt 0:00:51]} 35. e7 {[%emt 0:01:17]} Bg7 {[%emt 0:01:46]} 36. Rd8 {[%emt 0:04:03]} 1-0

[Event "ESTCC 65 2019"]
[Site "Mali Losinj"]
[Date "2019.09.21"]
[Round "4.16"]
[White "Fabrin, Morten"]
[Black "Staechelin, Ruedi"]
[Result "1/2-1/2"]
[ECO "A22"]
[WhiteElo "1998"]
[BlackElo "2002"]
[Annotator "NA"]
[PlyCount "95"]
[EventDate "2019.09.18"]
[EventType "team-tourn"]
[EventCountry "CRO"]
[SourceTitle "playchess.com"]
[Source "ChessBase"]
[SourceQuality "1"]
[WhiteTeam "Denmark"]
[BlackTeam "Switzerland"]
[WhiteTeamCountry "DEN"]
[BlackTeamCountry "SUI"]
[TimeControl "40/5400+30:1800+30"]

1. Nf3 {[%emt 0:00:30]} Nf6 {[%emt 0:00:30]} 2. c4 {[%emt 0:00:00]} d6 {[%emt 0:00:30]} 3. Nc3 {[%emt 0:00:00]} e5 {[%emt 0:01:30]} 4. d3 {[%emt 0:00:30]} Be7 {[%emt 0:01:30]} 5. g3 {[%emt 0:00:30]} c6 {[%emt 0:01:30]} 6. Bg2 {[%emt 0:00:30]} Nbd7 {[%emt 0:00:00]} 7. O-O {[%emt 0:01:30]} O-O {[%emt 0:00:00]} 8. Rb1 {[%emt 0:03:30]} a5 {[%emt 0:02:30]} 9. a3 {[%emt 0:00:30]} Re8 {[%emt 0:04:30]} 10. b4 {[%emt 0:01:30]} axb4 {[%emt 0:00:30]} 11. axb4 {[%emt 0:00:30]} Bf8 {[%emt 0:12:30]} 12. Qb3 {[%emt 0:03:30]} h6 {[%emt 0:02:30]} 13. Bd2 {[%emt 0:06:30]} Qe7 {[%emt 0:09:30]} 14. Ne1 {[%emt 0:04:30]} g6 {[%emt 0:06:30]} 15. Nc2 {[%emt 0:03:30]} Bg7 {[%emt 0:00:30]} 16. Ne3 {[%emt 0:00:30]} Nf8 {[%emt 0:01:30]} 17. b5 {[%emt 0:01:30]} c5 {[%emt 0:04:30]} 18. Ncd5 {[%emt 0:01:30]} Nxd5 {[%emt 0:00:30]} 19. Nxd5 {[%emt 0:00:30]} Qd8 {[%emt 0:00:30]} 20. Bc3 {[%emt 0:01:30]} Ne6 {[%emt 0:05:30]} 21. b6 {[%emt 0:02:30]} Rf8 {[%emt 0:02:30]} 22. e3 {[%emt 0:01:30]} Qd7 {[%emt 0:03:30]} 23. Ra1 {[%emt 0:01:30]} Rxa1 {[%emt 0:00:30]} 24. Rxa1 {[%emt 0:00:00]} Nd8 {[%emt 0:00:30]} 25. Ra8 {[%emt 0:02:00]} Nc6 {[%emt 0:01:30]} 26. Qb5 {[%emt 0:01:30]} Qg4 {[%emt 0:02:30]} 27. f3 {[%emt 0:04:30]} Qe6 {[%emt 0:06:30]} 28. Qb2 {[%emt 0:03:30]} Bd7 {[%emt 0:04:30]} 29. Ra1 {[%emt 0:03:30]} Rb8 {[%emt 0:00:30]} 30. Kf2 {[%emt 0:00:30]} Kh7 {[%emt 0:03:30]} 31. Qd2 {[%emt 0:03:30]} f5 {[%emt 0:02:54]} 32. Nc7 {[%emt 0:02:30]} Qf7 {[%emt 0:00:33]} 33. Qb2 {[%emt 0:01:30]} Rg8 {[%emt 0:04:39]} 34. f4 {[%emt 0:01:30]} exf4 {[%emt 0:02:08]} 35. gxf4 {[%emt 0:01:30]} g5 {[%emt 0:03:35]} 36. Bd5 {[%emt 0:00:30]} Qh5 {[%emt 0:03:49]} 37. Bxg8+ {[%emt 0:00:30]} Kxg8 {[%emt 0:00:02]} 38. Ra8+ {[%emt 0:01:30]} Kf7 {[%emt 0:01:22]} 39. Bxg7 {[%emt 0:00:00]} Qxh2+ {[%emt 0:00:13]} 40. Ke1 {[%emt 0:00:00]} Qg1+ {[%emt 0:00:40]} 41. Kd2 {[%emt 0:30:30]} Qf2+ {[%emt 0:30:30]} 42. Kd1 {[%emt 0:00:30]} Qf1+ {[%emt 0:00:22]} 43. Kc2 {[%emt 0:03:30]} Nb4+ {[%emt 0:01:48]} 44. Kb3 {[%emt 0:00:00]} Qd1+ {[%emt 0:01:32]} 45. Ka3 {[%emt 0:03:00]} Nc2+ {[%emt 0:01:25]} 46. Ka2 {[%emt 0:00:30]} Nb4+ {[%emt 0:00:13]} 47. Ka3 {[%emt 0:00:30]} Nc2+ {[%emt 0:00:10]} 48. Ka2 {[%emt 0:01:30]} 1/2-1/2

[Event "ESTCC 65 2019"]
[Site "Mali Losinj"]
[Date "2019.09.21"]
[Round "4.17"]
[White "Grahn, Lars"]
[Black "Rooze, Jan"]
[Result "0-1"]
[ECO "A41"]
[WhiteElo "2024"]
[BlackElo "2281"]
[Annotator "NA"]
[PlyCount "42"]
[EventDate "2019.09.18"]
[EventType "team-tourn"]
[EventCountry "CRO"]
[SourceTitle "playchess.com"]
[Source "ChessBase"]
[SourceQuality "1"]
[WhiteTeam "Sweden"]
[BlackTeam "Belgium"]
[WhiteTeamCountry "SWE"]
[BlackTeamCountry "BEL"]
[TimeControl "40/5400+30:1800+30"]

1. d4 {[%emt 0:00:30]} d6 {[%emt 0:00:30]} 2. c4 {[%emt 0:01:30]} e5 {[%emt 0:00:30]} 3. dxe5 {[%emt 0:02:30]} dxe5 {[%emt 0:00:30]} 4. Qxd8+ {[%emt 0:00:30]} Kxd8 {[%emt 0:00:30]} 5. Nc3 {[%emt 0:04:30]} Be6 {[%emt 0:01:30]} 6. b3 {[%emt 0:01:30]} Nd7 {[%emt 0:21:30]} 7. Bb2 {[%emt 0:04:30]} Nh6 {[%emt 0:02:30]} 8. h3 {[%emt 0:01:30]} f6 {[%emt 0:02:30]} 9. O-O-O {[%emt 0:02:30]} c6 {[%emt 0:01:30]} 10. e3 {[%emt 0:01:30]} Kc7 {[%emt 0:00:30]} 11. Bd3 {[%emt 0:02:30]} Nc5 {[%emt 0:03:30]} 12. Bc2 {[%emt 0:00:30]} a5 {[%emt 0:00:30]} 13. Ne4 {[%emt 0:19:30]} a4 {[%emt 0:02:30]} 14. Nxc5 {[%emt 0:07:30]} Bxc5 {[%emt 0:01:30]} 15. Ne2 {[%emt 0:00:30]} axb3 {[%emt 0:10:30]} 16. axb3 {[%emt 0:01:30]} Nf5 {[%emt 0:01:30]} 17. Nc3 {[%emt 0:05:30]} Nd6 {[%emt 0:01:30]} 18. Na4 {[%emt 0:03:30]} Bb4 {[%emt 0:01:30]} 19. Bc3 {[%emt 0:01:30]} Rxa4 {[%emt 0:03:30]} 20. bxa4 {[%emt 0:00:30]} Bxc3 {[%emt 0:00:30]} 21. c5 {[%emt 0:01:30]} Nf7 {[%emt 0:01:30]} 0-1

[Event "ESTCC 65 2019"]
[Site "Mali Losinj"]
[Date "2019.09.21"]
[Round "4.18"]
[White "Van Herck, Marcel"]
[Black "Wademark, Helge"]
[Result "1-0"]
[ECO "D25"]
[WhiteElo "2088"]
[BlackElo "1994"]
[Annotator "NA"]
[PlyCount "67"]
[EventDate "2019.09.18"]
[EventType "team-tourn"]
[EventCountry "CRO"]
[SourceTitle "playchess.com"]
[Source "ChessBase"]
[SourceQuality "1"]
[WhiteTeam "Belgium"]
[BlackTeam "Sweden"]
[WhiteTeamCountry "BEL"]
[BlackTeamCountry "SWE"]
[TimeControl "40/5400+30:1800+30"]

1. d4 {[%emt 0:00:30]} d5 {[%emt 0:00:30]} 2. c4 {[%emt 0:00:30]} dxc4 {[%emt 0:00:30]} 3. Nf3 {[%emt 0:02:30]} Nf6 {[%emt 0:00:30]} 4. e3 {[%emt 0:00:30]} Bg4 {[%emt 0:00:00]} 5. Bxc4 {[%emt 0:00:30]} e6 {[%emt 0:00:00]} 6. Nbd2 {[%emt 0:06:30]} Nbd7 {[%emt 0:09:30]} 7. Qb3 {[%emt 0:07:30]} Bxf3 {[%emt 0:01:30]} 8. Nxf3 {[%emt 0:00:00]} Nb6 {[%emt 0:00:30]} 9. Be2 {[%emt 0:05:00]} Qd5 {[%emt 0:06:30]} 10. Nd2 {[%emt 0:08:30]} Qxb3 {[%emt 0:07:30]} 11. Nxb3 {[%emt 0:00:30]} Bb4+ {[%emt 0:06:30]} 12. Bd2 {[%emt 0:00:30]} Bxd2+ {[%emt 0:00:30]} 13. Nxd2 {[%emt 0:00:30]} O-O-O {[%emt 0:00:30]} 14. Bf3 {[%emt 0:05:30]} Rhe8 {[%emt 0:05:30]} 15. O-O-O {[%emt 0:05:30]} c6 {[%emt 0:03:30]} 16. Ne4 {[%emt 0:05:30]} Nxe4 {[%emt 0:03:30]} 17. Bxe4 {[%emt 0:00:30]} g6 {[%emt 0:03:30]} 18. h4 {[%emt 0:02:30]} e5 {[%emt 0:08:30]} 19. dxe5 {[%emt 0:00:30]} Rxe5 {[%emt 0:00:30]} 20. Rxd8+ {[%emt 0:00:30]} Kxd8 {[%emt 0:00:00]} 21. Rd1+ {[%emt 0:00:00]} Ke7 {[%emt 0:00:00]} 22. Bf3 {[%emt 0:00:00]} h5 {[%emt 0:00:30]} 23. Rd4 {[%emt 0:02:30]} Rc5+ {[%emt 0:05:30]} 24. Kb1 {[%emt 0:01:30]} Rc4 {[%emt 0:06:30]} 25. Rxc4 {[%emt 0:01:30]} Nxc4 {[%emt 0:00:30]} 26. Kc2 {[%emt 0:01:30]} Ne5 {[%emt 0:02:30]} 27. Be2 {[%emt 0:00:30]} Ng4 {[%emt 0:04:30]} 28. Bxg4 {[%emt 0:00:30]} hxg4 {[%emt 0:00:00]} 29. Kd3 {[%emt 0:00:00]} Ke6 {[%emt 0:01:00]} 30. Ke4 {[%emt 0:02:00]} c5 {[%emt 0:04:30]} 31. Kf4 {[%emt 0:28:22]} b5 {[%emt 0:01:11]} 32. Kxg4 {[%emt 0:00:14]} c4 {[%emt 0:00:07]} 33. Kf3 {[%emt 0:00:08]} b4 {[%emt 0:00:12]} 34. Ke4 {[%emt 0:01:43]} 1-0

[Event "ESTCC 65 2019"]
[Site "Mali Losinj"]
[Date "2019.09.21"]
[Round "4.19"]
[White "Bernhardsson, Sten"]
[Black "Van de Wynkele, Herman"]
[Result "0-1"]
[ECO "B08"]
[WhiteElo "1956"]
[BlackElo "2085"]
[Annotator "NA"]
[PlyCount "48"]
[EventDate "2019.09.18"]
[EventType "team-tourn"]
[EventCountry "CRO"]
[SourceTitle "playchess.com"]
[Source "ChessBase"]
[SourceQuality "1"]
[WhiteTeam "Sweden"]
[BlackTeam "Belgium"]
[WhiteTeamCountry "SWE"]
[BlackTeamCountry "BEL"]
[TimeControl "40/5400+30:1800+30"]

1. d4 {[%emt 0:00:30]} g6 {[%emt 0:00:30]} 2. e4 {[%emt 0:00:30]} Bg7 {[%emt 0:00:00]} 3. Nf3 {[%emt 0:00:00]} d6 {[%emt 0:01:00]} 4. Bc4 {[%emt 0:01:00]} c6 {[%emt 0:00:30]} 5. a4 {[%emt 0:02:30]} Nf6 {[%emt 0:03:30]} 6. Nc3 {[%emt 0:03:30]} d5 {[%emt 0:01:30]} 7. exd5 {[%emt 0:02:30]} cxd5 {[%emt 0:00:30]} 8. Be2 {[%emt 0:04:30]} O-O {[%emt 0:00:30]} 9. O-O {[%emt 0:00:30]} Nc6 {[%emt 0:01:30]} 10. Bf4 {[%emt 0:07:30]} Ne4 {[%emt 0:03:30]} 11. Nb5 {[%emt 0:09:30]} a6 {[%emt 0:00:30]} 12. Na3 {[%emt 0:00:00]} Qb6 {[%emt 0:01:30]} 13. Rb1 {[%emt 0:17:00]} Nxd4 {[%emt 0:01:30]} 14. Be3 {[%emt 0:00:30]} Nxe2+ {[%emt 0:02:30]} 15. Qxe2 {[%emt 0:00:30]} Qc7 {[%emt 0:01:30]} 16. c4 {[%emt 0:00:30]} dxc4 {[%emt 0:05:30]} 17. Nxc4 {[%emt 0:00:30]} Nc5 {[%emt 0:01:30]} 18. Nb6 {[%emt 0:04:30]} Qxb6 {[%emt 0:00:30]} 19. b4 {[%emt 0:00:30]} Bf5 {[%emt 0:01:30]} 20. Bxc5 {[%emt 0:03:30]} Qc7 {[%emt 0:04:30]} 21. Rbc1 {[%emt 0:00:30]} Rfe8 {[%emt 0:01:30]} 22. Nd4 {[%emt 0:04:30]} Bd7 {[%emt 0:08:30]} 23. a5 {[%emt 0:02:30]} e5 {[%emt 0:01:30]} 24. Nf3 {[%emt 0:03:30]} Bb5 {[%emt 0:00:30]} 0-1

[Event "ESTCC 65 2019"]
[Site "Mali Losinj"]
[Date "2019.09.21"]
[Round "4.20"]
[White "Schrickx, Frank"]
[Black "Nordenstrom, Sven"]
[Result "1/2-1/2"]
[ECO "C68"]
[WhiteElo "1813"]
[BlackElo "1874"]
[Annotator "NA"]
[PlyCount "86"]
[EventDate "2019.09.18"]
[EventType "team-tourn"]
[EventCountry "CRO"]
[SourceTitle "playchess.com"]
[Source "ChessBase"]
[SourceQuality "1"]
[WhiteTeam "Belgium"]
[BlackTeam "Sweden"]
[WhiteTeamCountry "BEL"]
[BlackTeamCountry "SWE"]
[TimeControl "40/5400+30:1800+30"]

1. e4 {[%emt 0:00:30]} e5 {[%emt 0:00:30]} 2. Nf3 {[%emt 0:00:00]} Nc6 {[%emt 0:00:30]} 3. Bb5 {[%emt 0:00:00]} a6 {[%emt 0:00:30]} 4. Bxc6 {[%emt 0:00:30]} dxc6 {[%emt 0:00:30]} 5. O-O {[%emt 0:00:30]} Bd6 {[%emt 0:01:30]} 6. d4 {[%emt 0:00:30]} Bg4 {[%emt 0:02:30]} 7. dxe5 {[%emt 0:00:00]} Bxf3 {[%emt 0:00:00]} 8. Qxf3 {[%emt 0:00:00]} Bxe5 {[%emt 0:00:00]} 9. Nd2 {[%emt 0:02:30]} Qf6 {[%emt 0:02:30]} 10. Qxf6 {[%emt 0:03:30]} Nxf6 {[%emt 0:01:30]} 11. c3 {[%emt 0:05:30]} Bf4 {[%emt 0:03:30]} 12. g3 {[%emt 0:02:30]} Bxd2 {[%emt 0:02:30]} 13. Bxd2 {[%emt 0:00:00]} O-O {[%emt 0:00:30]} 14. f3 {[%emt 0:01:00]} h6 {[%emt 0:02:30]} 15. Bf4 {[%emt 0:02:30]} Rac8 {[%emt 0:00:30]} 16. Rad1 {[%emt 0:00:30]} g5 {[%emt 0:01:30]} 17. Be5 {[%emt 0:02:30]} Ne8 {[%emt 0:00:30]} 18. g4 {[%emt 0:03:30]} f6 {[%emt 0:02:30]} 19. Bg3 {[%emt 0:00:00]} Rf7 {[%emt 0:04:30]} 20. Rd2 {[%emt 0:01:00]} Re7 {[%emt 0:02:30]} 21. Rfd1 {[%emt 0:00:30]} Kf7 {[%emt 0:01:30]} 22. Kf2 {[%emt 0:05:30]} Ke6 {[%emt 0:08:30]} 23. Ke2 {[%emt 0:04:30]} b6 {[%emt 0:03:30]} 24. Rd8 {[%emt 0:06:30]} Rxd8 {[%emt 0:02:30]} 25. Rxd8 {[%emt 0:00:00]} a5 {[%emt 0:01:30]} 26. b3 {[%emt 0:08:00]} c5 {[%emt 0:04:30]} 27. a4 {[%emt 0:03:30]} Kf7 {[%emt 0:01:30]} 28. Kd3 {[%emt 0:01:30]} Kg6 {[%emt 0:03:30]} 29. Kc4 {[%emt 0:05:30]} h5 {[%emt 0:00:30]} 30. gxh5+ {[%emt 0:02:30]} Kxh5 {[%emt 0:00:00]} 31. h3 {[%emt 0:00:30]} Kg6 {[%emt 0:00:00]} 32. Kd3 {[%emt 0:01:30]} Ng7 {[%emt 0:02:30]} 33. h4 {[%emt 0:07:30]} Nh5 {[%emt 0:04:30]} 34. Bf2 {[%emt 0:06:30]} Nf4+ {[%emt 0:02:30]} 35. Kc2 {[%emt 0:01:30]} Rh7 {[%emt 0:01:30]} 36. hxg5 {[%emt 0:01:30]} Rh2 {[%emt 0:00:30]} 37. Rd2 {[%emt 0:00:30]} Nh3 {[%emt 0:01:30]} 38. Bg3 {[%emt 0:00:30]} Rxd2+ {[%emt 0:00:00]} 39. Kxd2 {[%emt 0:00:30]} Nxg5 {[%emt 0:00:00]} 40. Ke3 {[%emt 0:02:30]} Ne6 {[%emt 0:00:30]} 41. f4 {[%emt 0:30:30]} f5 {[%emt 0:30:30]} 42. Bh4 {[%emt 0:02:43]} Ng7 {[%emt 0:05:30]} 43. Bd8 {[%emt 0:07:11]} Ne6 {[%emt 0:00:00]} 1/2-1/2